[Event "*** Titled Tuesday Blitz"]
[Site "Chess.com"]
[Date "2021.04.06"]
[Round "2"]
[White "Ze-Pequeno"]
[Black "kikydu96"]
[Result "1-0"]
[WhiteElo "2247"]
[BlackElo "2436"]
[TimeControl "180+1"]
[EndTime "10:17:49 PDT"]
[Termination "Ze-Pequeno won by checkmate"]

1. e4 {[%clk 0:03:00.9]} 1... c5 {[%clk 0:02:58.3]} 2. Nf3 {[%clk 0:03:00.5]}
2... d6 {[%clk 0:02:55.7]} 3. d4 {[%clk 0:03:00.5]} 3... cxd4 {[%clk 0:02:56.6]}
4. Nxd4 {[%clk 0:03:00.8]} 4... Nf6 {[%clk 0:02:57]} 5. Nc3 {[%clk 0:03:01.3]}
5... Nc6 {[%clk 0:02:57.4]} 6. Bg5 {[%clk 0:03:00.3]} 6... e6 {[%clk 0:02:57.6]}
7. Qd2 {[%clk 0:02:59.9]} 7... Be7 {[%clk 0:02:57.4]} 8. O-O-O {[%clk
0:02:59.2]} 8... Nxd4 {[%clk 0:02:57.8]} 9. Qxd4 {[%clk 0:02:58.8]} 9... O-O
{[%clk 0:02:58]} 10. f4 {[%clk 0:02:58.7]} 10... h6 {[%clk 0:02:57.5]} 11. Bh4
{[%clk 0:02:53.3]} 11... Qa5 {[%clk 0:02:51]} 12. Bc4 {[%clk 0:02:39.7]} 12...
e5 {[%clk 0:02:10.7]} 13. fxe5 {[%clk 0:02:34.6]} 13... dxe5 {[%clk 0:02:11.3]}
14. Qd3 {[%clk 0:02:34.2]} 14... Bg4 {[%clk 0:02:08.7]} 15. Rdf1 {[%clk
0:02:31.1]} 15... Rad8 {[%clk 0:02:04.1]} 16. Qg3 {[%clk 0:02:22.7]} 16... g5
{[%clk 0:01:04.1]} 17. Rxf6 {[%clk 0:02:10.1]} 17... Bxf6 {[%clk 0:00:59.8]} 18.
Qxg4 {[%clk 0:02:04.9]} 18... Rc8 {[%clk 0:00:57.5]} 19. Nd5 {[%clk 0:01:30.6]}
19... Bd8 {[%clk 0:00:37.1]} 20. Qxc8 {[%clk 0:01:26]} 20... gxh4 {[%clk
0:00:34.1]} 21. Kb1 {[%clk 0:01:13.1]} 21... Bg5 {[%clk 0:00:32.5]} 22. Qxb7
{[%clk 0:01:07.3]} 22... Qd2 {[%clk 0:00:32.5]} 23. Bb3 {[%clk 0:00:53.6]} 23...
Qxg2 {[%clk 0:00:31.4]} 24. Rd1 {[%clk 0:00:51.6]} 24... Qxh2 {[%clk 0:00:31.2]}
25. Qxa7 {[%clk 0:00:48.3]} 25... Qe2 {[%clk 0:00:30.3]} 26. Rg1 {[%clk
0:00:46.1]} 26... h3 {[%clk 0:00:28]} 27. Qe7 {[%clk 0:00:43.9]} 27... h2 {[%clk
0:00:11.9]} 28. Rxg5+ {[%clk 0:00:42.7]} 28... hxg5 {[%clk 0:00:07]} 29. Qxg5+
{[%clk 0:00:42.6]} 29... Kh7 {[%clk 0:00:04.8]} 30. Nf6+ {[%clk 0:00:41.9]}
30... Kh8 {[%clk 0:00:04.3]} 31. Qh6# {[%clk 0:00:42]} 1-0

[Event "*** Titled Tuesday Blitz"]
[Site "Chess.com"]
[Date "2021.04.06"]
[Round "2"]
[White "Genghis_K"]
[Black "Nuvas"]
[Result "1-0"]
[WhiteElo "2938"]
[BlackElo "2570"]
[TimeControl "180+1"]
[EndTime "10:17:51 PDT"]
[Termination "Genghis_K won by checkmate"]

1. e4 {[%clk 0:02:36.3]} 1... c5 {[%clk 0:02:59.9]} 2. Nf3 {[%clk 0:02:36.6]}
2... d6 {[%clk 0:03:00.3]} 3. d4 {[%clk 0:02:37.3]} 3... cxd4 {[%clk 0:03:01]}
4. Nxd4 {[%clk 0:02:38.2]} 4... Nf6 {[%clk 0:03:01.7]} 5. Nc3 {[%clk 0:02:38.9]}
5... a6 {[%clk 0:03:02.4]} 6. a3 {[%clk 0:02:39.1]} 6... e5 {[%clk 0:03:01.4]}
7. Nf5 {[%clk 0:02:39.7]} 7... d5 {[%clk 0:02:59.3]} 8. Bg5 {[%clk 0:02:40.1]}
8... d4 {[%clk 0:02:52.8]} 9. Bxf6 {[%clk 0:02:40]} 9... gxf6 {[%clk 0:02:52.5]}
10. Na2 {[%clk 0:02:39.9]} 10... Bxf5 {[%clk 0:02:44.3]} 11. exf5 {[%clk
0:02:40.8]} 11... Nc6 {[%clk 0:02:28.2]} 12. Qf3 {[%clk 0:02:26.1]} 12... Qa5+
{[%clk 0:02:21.5]} 13. b4 {[%clk 0:02:22.6]} 13... Qc7 {[%clk 0:01:54.4]} 14.
Bd3 {[%clk 0:02:21.1]} 14... Bd6 {[%clk 0:01:18.3]} 15. Be4 {[%clk 0:02:18.5]}
15... O-O {[%clk 0:01:17.9]} 16. O-O {[%clk 0:02:17.2]} 16... Kh8 {[%clk
0:01:18]} 17. c3 {[%clk 0:02:17.1]} 17... Rg8 {[%clk 0:01:14.8]} 18. c4 {[%clk
0:02:14.5]} 18... Rg7 {[%clk 0:01:08.6]} 19. Nc1 {[%clk 0:02:06.8]} 19... Rag8
{[%clk 0:01:05.4]} 20. g3 {[%clk 0:02:07.3]} 20... a5 {[%clk 0:01:01.7]} 21. c5
{[%clk 0:02:05.4]} 21... Be7 {[%clk 0:01:00.1]} 22. Nd3 {[%clk 0:02:06]} 22...
Nd8 {[%clk 0:00:39.6]} 23. Rfc1 {[%clk 0:02:02.5]} 23... b6 {[%clk 0:00:39]} 24.
c6 {[%clk 0:01:59.6]} 24... Bd6 {[%clk 0:00:31.5]} 25. bxa5 {[%clk 0:01:42.5]}
25... bxa5 {[%clk 0:00:31.3]} 26. a4 {[%clk 0:01:42.7]} 26... Be7 {[%clk
0:00:28.3]} 27. Rab1 {[%clk 0:01:42.4]} 27... Ba3 {[%clk 0:00:28.4]} 28. Rc2
{[%clk 0:01:41.2]} 28... Bd6 {[%clk 0:00:28.7]} 29. Kg2 {[%clk 0:01:41.2]} 29...
Rg4 {[%clk 0:00:26.9]} 30. h3 {[%clk 0:01:40.6]} 30... R4g7 {[%clk 0:00:26.9]}
31. Rb5 {[%clk 0:01:41]} 31... Be7 {[%clk 0:00:24.1]} 32. Nb2 {[%clk 0:01:37]}
32... Bb4 {[%clk 0:00:22.8]} 33. Nc4 {[%clk 0:01:34.7]} 33... Bc3 {[%clk
0:00:22.6]} 34. Nb6 {[%clk 0:01:32.1]} 34... Qd6 {[%clk 0:00:15.4]} 35. Rd5
{[%clk 0:01:27.2]} 35... Qxc6 {[%clk 0:00:12.8]} 36. Nd7 {[%clk 0:01:23.3]}
36... Qxa4 {[%clk 0:00:12.3]} 37. Nxf6 {[%clk 0:01:20.9]} 37... Rf8 {[%clk
0:00:12.2]} 38. Rxe5 {[%clk 0:01:16.3]} 38... d3 {[%clk 0:00:11.8]} 39. Rxc3
{[%clk 0:01:16.3]} 39... d2 {[%clk 0:00:12.3]} 40. Rd3 {[%clk 0:01:16.3]} 40...
Qa1 {[%clk 0:00:07.3]} 41. Nd7 {[%clk 0:01:11.7]} 41... f6 {[%clk 0:00:06.6]}
42. Nxf8 {[%clk 0:01:09.2]} 42... Qxe5 {[%clk 0:00:07.2]} 43. Rxd8 {[%clk
0:01:09.1]} 43... Qe7 {[%clk 0:00:07.1]} 44. Ng6# {[%clk 0:01:09.1]} 1-0

[Event "*** Titled Tuesday Blitz"]
[Site "Chess.com"]
[Date "2021.04.06"]
[Round "2"]
[White "Titus369"]
[Black "QuintilianoR"]
[Result "1-0"]
[WhiteElo "2512"]
[BlackElo "2704"]
[TimeControl "180+1"]
[EndTime "10:17:51 PDT"]
[Termination "Titus369 won by resignation"]

1. e4 {[%clk 0:03:00.9]} 1... c5 {[%clk 0:02:59.3]} 2. Nf3 {[%clk 0:03:00.9]}
2... d6 {[%clk 0:02:59.7]} 3. d4 {[%clk 0:03:00.5]} 3... cxd4 {[%clk 0:03:00.6]}
4. Nxd4 {[%clk 0:03:00.6]} 4... Nf6 {[%clk 0:03:01.2]} 5. Nc3 {[%clk 0:03:00.5]}
5... a6 {[%clk 0:03:01.7]} 6. h3 {[%clk 0:02:59.5]} 6... e6 {[%clk 0:03:01.6]}
7. g4 {[%clk 0:02:59.2]} 7... Nfd7 {[%clk 0:03:01.6]} 8. Bg2 {[%clk 0:02:58.6]}
8... Be7 {[%clk 0:03:00.1]} 9. g5 {[%clk 0:02:57.2]} 9... Nc6 {[%clk 0:02:59.3]}
10. h4 {[%clk 0:02:56.8]} 10... O-O {[%clk 0:02:51]} 11. Be3 {[%clk 0:02:46.2]}
11... Nxd4 {[%clk 0:02:45.6]} 12. Bxd4 {[%clk 0:02:47.1]} 12... Rb8 {[%clk
0:02:45.8]} 13. Ba7 {[%clk 0:02:43]} 13... Ra8 {[%clk 0:02:45.5]} 14. Be3 {[%clk
0:02:43.9]} 14... Rb8 {[%clk 0:02:45.6]} 15. Ba7 {[%clk 0:02:42.4]} 15... Ra8
{[%clk 0:02:45.4]} 16. Be3 {[%clk 0:02:43.3]} 16... b5 {[%clk 0:02:45.7]} 17. f4
{[%clk 0:02:37.6]} 17... Bb7 {[%clk 0:02:45.3]} 18. Ne2 {[%clk 0:02:33.3]} 18...
Rc8 {[%clk 0:02:34.4]} 19. Ng3 {[%clk 0:02:31]} 19... Qc7 {[%clk 0:02:27.5]} 20.
c3 {[%clk 0:02:29.1]} 20... d5 {[%clk 0:02:27.5]} 21. exd5 {[%clk 0:02:27.5]}
21... exd5 {[%clk 0:02:11.2]} 22. O-O {[%clk 0:02:18.5]} 22... Bc5 {[%clk
0:02:07.9]} 23. Bd4 {[%clk 0:02:16.4]} 23... Bxd4+ {[%clk 0:02:06.2]} 24. Qxd4
{[%clk 0:02:17.3]} 24... Nc5 {[%clk 0:01:52.2]} 25. Bh3 {[%clk 0:02:09]} 25...
Ne6 {[%clk 0:01:50]} 26. Bxe6 {[%clk 0:02:06.4]} 26... fxe6 {[%clk 0:01:50.9]}
27. Rae1 {[%clk 0:02:06.1]} 27... Rce8 {[%clk 0:01:41.6]} 28. Re5 {[%clk
0:02:03.5]} 28... Bc8 {[%clk 0:01:22.4]} 29. Kg2 {[%clk 0:01:48.9]} 29... Rf7
{[%clk 0:01:20.3]} 30. f5 {[%clk 0:01:46.3]} 30... Ref8 {[%clk 0:01:13.1]} 31.
f6 {[%clk 0:01:19.4]} 31... gxf6 {[%clk 0:01:10.1]} 32. gxf6 {[%clk 0:01:18.9]}
32... Kh8 {[%clk 0:01:04.6]} 33. Nh5 {[%clk 0:01:07.9]} 33... Rg8+ {[%clk
0:00:58.1]} 34. Rg5 {[%clk 0:01:07]} 34... Rxg5+ {[%clk 0:00:55.1]} 35. hxg5
{[%clk 0:01:07.9]} 35... e5 {[%clk 0:00:56]} 36. Re1 {[%clk 0:00:57.5]} 36...
Qd7 {[%clk 0:00:20]} 37. Qxe5 {[%clk 0:00:49.7]} 37... Qh3+ {[%clk 0:00:19.6]}
38. Kg1 {[%clk 0:00:49.3]} 38... h6 {[%clk 0:00:15]} 39. Qe8+ {[%clk 0:00:48.8]}
39... Kh7 {[%clk 0:00:14.9]} 40. Qxf7+ {[%clk 0:00:49]} 1-0

[Event "*** Titled Tuesday Blitz"]
[Site "Chess.com"]
[Date "2021.04.06"]
[Round "2"]
[White "ridnani2021"]
[Black "ymoy"]
[Result "1-0"]
[WhiteElo "2355"]
[BlackElo "2698"]
[TimeControl "180+1"]
[EndTime "10:17:51 PDT"]
[Termination "ridnani2021 won by resignation"]

1. e4 {[%clk 0:03:00.9]} 1... c5 {[%clk 0:02:59.9]} 2. Nf3 {[%clk 0:03:00.1]}
2... d6 {[%clk 0:03:00.5]} 3. d4 {[%clk 0:02:59.8]} 3... cxd4 {[%clk 0:03:01.4]}
4. Qxd4 {[%clk 0:03:00.2]} 4... Nf6 {[%clk 0:03:01.8]} 5. e5 {[%clk 0:03:00.1]}
5... Nc6 {[%clk 0:02:59.7]} 6. Bb5 {[%clk 0:02:59.6]} 6... dxe5 {[%clk
0:02:46.1]} 7. Qxd8+ {[%clk 0:02:57.9]} 7... Kxd8 {[%clk 0:02:47]} 8. Bxc6
{[%clk 0:02:58.3]} 8... bxc6 {[%clk 0:02:47.9]} 9. Nxe5 {[%clk 0:02:58.7]} 9...
Ke8 {[%clk 0:02:44.5]} 10. O-O {[%clk 0:02:58.7]} 10... Bf5 {[%clk 0:02:39.8]}
11. c4 {[%clk 0:02:56]} 11... e6 {[%clk 0:02:32.3]} 12. Nxc6 {[%clk 0:02:55.1]}
12... Bc5 {[%clk 0:02:32]} 13. Nc3 {[%clk 0:02:52.3]} 13... Rc8 {[%clk
0:02:25.5]} 14. Ne5 {[%clk 0:02:51.1]} 14... Bd4 {[%clk 0:02:23.4]} 15. Re1
{[%clk 0:02:45.7]} 15... Ke7 {[%clk 0:02:06.6]} 16. Bf4 {[%clk 0:02:35.6]} 16...
Rhd8 {[%clk 0:02:03.3]} 17. Rad1 {[%clk 0:02:30.3]} 17... Nh5 {[%clk 0:01:57.9]}
18. Nb5 {[%clk 0:02:13]} 18... Bxe5 {[%clk 0:00:31.2]} 19. Bxe5 {[%clk
0:02:09.7]} 19... Rxd1 {[%clk 0:00:31.8]} 20. Rxd1 {[%clk 0:02:09.5]} 20... Rxc4
{[%clk 0:00:31.7]} 21. Nxa7 {[%clk 0:02:07.6]} 21... f6 {[%clk 0:00:31.1]} 22.
Bd6+ {[%clk 0:02:06.2]} 22... Kf7 {[%clk 0:00:30.4]} 23. b4 {[%clk 0:02:06.2]}
23... e5 {[%clk 0:00:17.6]} 24. b5 {[%clk 0:02:06.1]} 24... Nf4 {[%clk
0:00:17.9]} 25. b6 {[%clk 0:02:01.5]} 25... Be4 {[%clk 0:00:18]} 26. f3 {[%clk
0:01:54.3]} 26... Ba8 {[%clk 0:00:13.2]} 27. Nb5 {[%clk 0:01:52.7]} 27... Rc2
{[%clk 0:00:11.1]} 28. a4 {[%clk 0:01:49.1]} 28... Rxg2+ {[%clk 0:00:10.4]} 29.
Kf1 {[%clk 0:01:44.7]} 29... Bxf3 {[%clk 0:00:11.3]} 30. Rc1 {[%clk 0:01:38.7]}
30... Be2+ {[%clk 0:00:10.4]} 31. Ke1 {[%clk 0:01:39.1]} 31... Nd3+ {[%clk
0:00:09.9]} 32. Kd2 {[%clk 0:01:39.6]} 32... Nxc1 {[%clk 0:00:03.7]} 33. Kxc1
{[%clk 0:01:40.5]} 33... Bf3 {[%clk 0:00:03.7]} 34. a5 {[%clk 0:01:38.9]} 34...
Ra2 {[%clk 0:00:03.6]} 35. Ba3 {[%clk 0:01:24]} 35... e4 {[%clk 0:00:02.1]} 36.
b7 {[%clk 0:01:19.7]} 36... e3 {[%clk 0:00:02.6]} 37. b8=Q {[%clk 0:01:18.7]}
37... e2 {[%clk 0:00:03.1]} 38. Qc7+ {[%clk 0:01:17.6]} 38... Kg6 {[%clk
0:00:03.2]} 39. Qg3+ {[%clk 0:01:15.8]} 39... Kh6 {[%clk 0:00:03.7]} 40. Bb4
{[%clk 0:01:12.6]} 40... Ra1+ {[%clk 0:00:03.4]} 41. Kb2 {[%clk 0:01:12.5]}
41... Rd1 {[%clk 0:00:03.2]} 42. Qxf3 {[%clk 0:01:09.8]} 1-0

[Event "*** Titled Tuesday Blitz"]
[Site "Chess.com"]
[Date "2021.04.06"]
[Round "2"]
[White "IwkooO"]
[Black "volunteers1998"]
[Result "1-0"]
[WhiteElo "2605"]
[BlackElo "2227"]
[TimeControl "180+1"]
[EndTime "10:17:54 PDT"]
[Termination "IwkooO won on time"]

1. e4 {[%clk 0:03:00.9]} 1... c5 {[%clk 0:02:58.2]} 2. Nc3 {[%clk 0:02:55.8]}
2... Nc6 {[%clk 0:02:57.7]} 3. Nge2 {[%clk 0:02:55.6]} 3... g6 {[%clk
0:02:53.8]} 4. d4 {[%clk 0:02:55.4]} 4... cxd4 {[%clk 0:02:52.6]} 5. Nxd4 {[%clk
0:02:56.3]} 5... Bg7 {[%clk 0:02:48.4]} 6. Be3 {[%clk 0:02:54.7]} 6... d6 {[%clk
0:02:45.8]} 7. Bc4 {[%clk 0:02:51.6]} 7... Nf6 {[%clk 0:02:42.8]} 8. h3 {[%clk
0:02:09.5]} 8... O-O {[%clk 0:02:38.8]} 9. O-O {[%clk 0:02:04.7]} 9... a6 {[%clk
0:02:32]} 10. a3 {[%clk 0:02:02.5]} 10... Nxd4 {[%clk 0:02:27.5]} 11. Bxd4
{[%clk 0:02:02.5]} 11... b5 {[%clk 0:02:23.2]} 12. Bb3 {[%clk 0:02:02.3]} 12...
Bb7 {[%clk 0:02:18.3]} 13. Qd3 {[%clk 0:02:01.3]} 13... Rc8 {[%clk 0:02:13.2]}
14. Rfe1 {[%clk 0:02:01.2]} 14... Qc7 {[%clk 0:02:06.3]} 15. Rad1 {[%clk
0:02:01]} 15... Rfd8 {[%clk 0:02:00.4]} 16. Re2 {[%clk 0:01:50.6]} 16... Ne8
{[%clk 0:01:48]} 17. Bd5 {[%clk 0:01:45.1]} 17... Bxd4 {[%clk 0:01:43.2]} 18.
Qxd4 {[%clk 0:01:46]} 18... Nf6 {[%clk 0:01:39.3]} 19. Rd3 {[%clk 0:01:39.8]}
19... Bxd5 {[%clk 0:01:34.2]} 20. exd5 {[%clk 0:01:39.4]} 20... Qd7 {[%clk
0:01:26.2]} 21. Rde3 {[%clk 0:01:38.5]} 21... Re8 {[%clk 0:01:22.7]} 22. Qb6
{[%clk 0:01:37.3]} 22... Ra8 {[%clk 0:01:11.9]} 23. Kh2 {[%clk 0:01:09.4]} 23...
Ra7 {[%clk 0:01:07.8]} 24. Rf3 {[%clk 0:01:07]} 24... Kg7 {[%clk 0:00:52.4]} 25.
Qd4 {[%clk 0:01:06.4]} 25... Rc8 {[%clk 0:00:46.4]} 26. b3 {[%clk 0:01:01.5]}
26... Rac7 {[%clk 0:00:43.6]} 27. Ne4 {[%clk 0:00:59.8]} 27... Qd8 {[%clk
0:00:30.2]} 28. c3 {[%clk 0:00:53.4]} 28... h5 {[%clk 0:00:18.2]} 29. g4 {[%clk
0:00:47.6]} 29... hxg4 {[%clk 0:00:15.6]} 30. hxg4 {[%clk 0:00:48.5]} 30... Qh8+
{[%clk 0:00:07]} 31. Rh3 {[%clk 0:00:41.6]} 31... Qd8 {[%clk 0:00:06]} 32. g5
{[%clk 0:00:41.7]} 1-0

[Event "*** Titled Tuesday Blitz"]
[Site "Chess.com"]
[Date "2021.04.06"]
[Round "2"]
[White "Nara_Kh"]
[Black "Michaelson_11"]
[Result "1-0"]
[WhiteElo "2454"]
[BlackElo "2233"]
[TimeControl "180+1"]
[EndTime "10:17:55 PDT"]
[Termination "Nara_Kh won by resignation"]

1. e4 {[%clk 0:03:00.9]} 1... e6 {[%clk 0:02:58.8]} 2. d4 {[%clk 0:03:00.5]}
2... d5 {[%clk 0:02:57.4]} 3. Nd2 {[%clk 0:03:00.6]} 3... c5 {[%clk 0:02:48]} 4.
Ngf3 {[%clk 0:02:58.1]} 4... Nc6 {[%clk 0:02:46.3]} 5. exd5 {[%clk 0:02:55]}
5... exd5 {[%clk 0:02:47.2]} 6. Bb5 {[%clk 0:02:54.6]} 6... Qe7+ {[%clk
0:02:47.5]} 7. Be2 {[%clk 0:02:53.1]} 7... Qc7 {[%clk 0:02:47.5]} 8. O-O {[%clk
0:02:51.9]} 8... Nf6 {[%clk 0:02:47.4]} 9. Re1 {[%clk 0:02:50.3]} 9... Be6
{[%clk 0:02:47.6]} 10. c3 {[%clk 0:02:41.9]} 10... O-O-O {[%clk 0:02:34.6]} 11.
a4 {[%clk 0:02:36.1]} 11... cxd4 {[%clk 0:01:58.9]} 12. cxd4 {[%clk 0:02:22.7]}
12... Bb4 {[%clk 0:01:58.4]} 13. Rf1 {[%clk 0:02:08.2]} 13... Rhe8 {[%clk
0:01:05.3]} 14. Nb3 {[%clk 0:02:01.4]} 14... Ne4 {[%clk 0:01:03.5]} 15. Be3
{[%clk 0:01:52.9]} 15... f5 {[%clk 0:00:47.7]} 16. g3 {[%clk 0:01:43.8]} 16...
h6 {[%clk 0:00:40.6]} 17. Rc1 {[%clk 0:01:41.8]} 17... g5 {[%clk 0:00:37.5]} 18.
Ne5 {[%clk 0:01:30.5]} 18... f4 {[%clk 0:00:16.3]} 19. Bb5 {[%clk 0:00:57.9]}
19... fxe3 {[%clk 0:00:11.5]} 20. Nxc6 {[%clk 0:00:51.9]} 20... exf2+ {[%clk
0:00:09.6]} 21. Kg2 {[%clk 0:00:51.3]} 21... bxc6 {[%clk 0:00:05.6]} 22. Rxc6
{[%clk 0:00:50.4]} 22... Qxc6 {[%clk 0:00:03.3]} 23. Bxc6 {[%clk 0:00:51.3]}
23... Rf8 {[%clk 0:00:03.4]} 24. Qe2 {[%clk 0:00:45.5]} 24... Kc7 {[%clk
0:00:03.1]} 25. Qa6 {[%clk 0:00:35.3]} 25... Rb8 {[%clk 0:00:02.8]} 26. Bb5
{[%clk 0:00:35]} 26... Kd8 {[%clk 0:00:02]} 27. Qxe6 {[%clk 0:00:33.3]} 1-0

[Event "*** Titled Tuesday Blitz"]
[Site "Chess.com"]
[Date "2021.04.06"]
[Round "2"]
[White "marszach123"]
[Black "Treacherous_horse64"]
[Result "1/2-1/2"]
[WhiteElo "2152"]
[BlackElo "2407"]
[TimeControl "180+1"]
[EndTime "10:17:55 PDT"]
[Termination "Game drawn by stalemate"]

1. e4 {[%clk 0:03:00.9]} 1... c6 {[%clk 0:02:53.6]} 2. d4 {[%clk 0:02:59.9]}
2... d5 {[%clk 0:02:54.5]} 3. Nd2 {[%clk 0:03:00.5]} 3... dxe4 {[%clk 0:02:54]}
4. Nxe4 {[%clk 0:03:01.4]} 4... Nd7 {[%clk 0:02:50.2]} 5. c3 {[%clk 0:02:57.7]}
5... Ngf6 {[%clk 0:02:48.8]} 6. Nxf6+ {[%clk 0:02:58.1]} 6... Nxf6 {[%clk
0:02:49.7]} 7. Bc4 {[%clk 0:02:58.4]} 7... Bf5 {[%clk 0:02:47.8]} 8. Qb3 {[%clk
0:02:54]} 8... e6 {[%clk 0:02:30.7]} 9. Qxb7 {[%clk 0:02:53]} 9... Qc8 {[%clk
0:02:30.2]} 10. Ba6 {[%clk 0:02:40.3]} 10... Qd8 {[%clk 0:02:14.4]} 11. Qxc6+
{[%clk 0:02:35.1]} 11... Nd7 {[%clk 0:02:14.3]} 12. Nf3 {[%clk 0:02:28.8]} 12...
Be7 {[%clk 0:02:01.3]} 13. Ne5 {[%clk 0:02:24.2]} 13... Rb8 {[%clk 0:01:54.6]}
14. Bb5 {[%clk 0:02:16.9]} 14... O-O {[%clk 0:01:42.6]} 15. Qxd7 {[%clk
0:02:07.1]} 15... Qa5 {[%clk 0:01:35.6]} 16. O-O {[%clk 0:01:48.6]} 16... Bf6
{[%clk 0:01:29.6]} 17. Be2 {[%clk 0:01:37.5]} 17... Bxe5 {[%clk 0:01:22]} 18.
dxe5 {[%clk 0:01:35.4]} 18... Qxe5 {[%clk 0:01:22.9]} 19. Be3 {[%clk 0:01:20.7]}
19... a5 {[%clk 0:01:21.9]} 20. Bf3 {[%clk 0:01:18.3]} 20... Rxb2 {[%clk
0:01:20.5]} 21. Bd4 {[%clk 0:01:15.4]} 21... Qf4 {[%clk 0:01:16]} 22. Rad1
{[%clk 0:01:05.9]} 22... Rxa2 {[%clk 0:01:13.7]} 23. Bc5 {[%clk 0:01:05.5]}
23... g6 {[%clk 0:01:02.7]} 24. Bxf8 {[%clk 0:01:05.2]} 24... Kxf8 {[%clk
0:01:03.6]} 25. Qd8+ {[%clk 0:01:03.6]} 25... Kg7 {[%clk 0:01:03.3]} 26. Qd4+
{[%clk 0:01:04]} 26... Qxd4 {[%clk 0:01:02.6]} 27. Rxd4 {[%clk 0:01:04.9]} 27...
Rc2 {[%clk 0:01:00.9]} 28. Ra4 {[%clk 0:01:04.3]} 28... Rxc3 {[%clk 0:01:00.5]}
29. Rxa5 {[%clk 0:01:04.5]} 29... h5 {[%clk 0:00:59.9]} 30. h3 {[%clk
0:01:04.7]} 30... Bxh3 {[%clk 0:00:56.5]} 31. Rd1 {[%clk 0:01:01.8]} 31... Bf5
{[%clk 0:00:52.6]} 32. Ra7 {[%clk 0:00:58.3]} 32... e5 {[%clk 0:00:48.6]} 33.
Bd5 {[%clk 0:00:57.3]} 33... Kh6 {[%clk 0:00:44]} 34. Rxf7 {[%clk 0:00:56.4]}
34... e4 {[%clk 0:00:42.2]} 35. Re7 {[%clk 0:00:55.6]} 35... Bg4 {[%clk
0:00:38.1]} 36. Re1 {[%clk 0:00:54.8]} 36... Rc5 {[%clk 0:00:34.8]} 37. Bxe4
{[%clk 0:00:54.2]} 37... Kg5 {[%clk 0:00:33.9]} 38. Rg7 {[%clk 0:00:53.4]} 38...
Bf5 {[%clk 0:00:29.7]} 39. Bxf5 {[%clk 0:00:53.1]} 39... Rxf5 {[%clk 0:00:30.4]}
40. Re3 {[%clk 0:00:53.3]} 40... Rd5 {[%clk 0:00:25.9]} 41. Rg3+ {[%clk
0:00:52.4]} 41... Kh4 {[%clk 0:00:26.2]} 42. R7xg6 {[%clk 0:00:53.3]} 42... Rd1+
{[%clk 0:00:25.7]} 43. Kh2 {[%clk 0:00:49]} 43... Rh1+ {[%clk 0:00:26.6]} 44.
Kxh1 {[%clk 0:00:49.9]} 1/2-1/2

[Event "*** Titled Tuesday Blitz"]
[Site "Chess.com"]
[Date "2021.04.06"]
[Round "2"]
[White "Balla_Tamas"]
[Black "crescentmoon2411"]
[Result "0-1"]
[WhiteElo "2551"]
[BlackElo "2875"]
[TimeControl "180+1"]
[EndTime "10:17:56 PDT"]
[Termination "crescentmoon2411 won by resignation"]

1. e4 {[%clk 0:03:00.9]} 1... c5 {[%clk 0:02:59.4]} 2. Nf3 {[%clk 0:02:59.4]}
2... e6 {[%clk 0:02:59.8]} 3. d4 {[%clk 0:02:58.2]} 3... cxd4 {[%clk 0:03:00.7]}
4. Nxd4 {[%clk 0:02:58.4]} 4... Nc6 {[%clk 0:03:01.6]} 5. Nc3 {[%clk 0:02:57.1]}
5... a6 {[%clk 0:03:01.5]} 6. g3 {[%clk 0:02:54.8]} 6... Qc7 {[%clk 0:02:53.7]}
7. Bg2 {[%clk 0:02:53.9]} 7... Bc5 {[%clk 0:02:48.7]} 8. Nb3 {[%clk 0:02:50.3]}
8... Be7 {[%clk 0:02:48.1]} 9. O-O {[%clk 0:02:49.5]} 9... Nf6 {[%clk
0:02:47.9]} 10. f4 {[%clk 0:02:48.5]} 10... d6 {[%clk 0:02:48.2]} 11. Be3 {[%clk
0:02:46.1]} 11... O-O {[%clk 0:02:48.1]} 12. h3 {[%clk 0:02:42.3]} 12... b5
{[%clk 0:02:47.4]} 13. g4 {[%clk 0:02:25.5]} 13... Bb7 {[%clk 0:02:46.4]} 14. g5
{[%clk 0:02:24.6]} 14... Nd7 {[%clk 0:02:46.8]} 15. Qe2 {[%clk 0:01:58.9]} 15...
b4 {[%clk 0:02:44.1]} 16. Na4 {[%clk 0:01:50.5]} 16... a5 {[%clk 0:02:44.6]} 17.
Qf2 {[%clk 0:01:38.9]} 17... Ba6 {[%clk 0:02:44.5]} 18. Rfd1 {[%clk 0:01:39]}
18... Rab8 {[%clk 0:02:40.3]} 19. a3 {[%clk 0:01:29.4]} 19... Bb5 {[%clk
0:02:38.3]} 20. axb4 {[%clk 0:01:29.2]} 20... Nxb4 {[%clk 0:02:39.2]} 21. Nc3
{[%clk 0:01:25.8]} 21... a4 {[%clk 0:02:15.3]} 22. Nxb5 {[%clk 0:01:24.9]} 22...
Rxb5 {[%clk 0:02:13.8]} 23. Nd4 {[%clk 0:01:15.6]} 23... Ra5 {[%clk 0:02:13.4]}
24. c3 {[%clk 0:01:14.4]} 24... Nc6 {[%clk 0:02:10.8]} 25. Nxc6 {[%clk
0:01:06.4]} 25... Qxc6 {[%clk 0:02:11.7]} 26. e5 {[%clk 0:01:06.9]} 26... d5
{[%clk 0:02:11.8]} 27. Bd4 {[%clk 0:00:57.3]} 27... Rb8 {[%clk 0:02:05.9]} 28.
h4 {[%clk 0:00:56.5]} 28... g6 {[%clk 0:02:03.6]} 29. h5 {[%clk 0:00:56]} 29...
Rab5 {[%clk 0:02:01]} 30. Rd2 {[%clk 0:00:54.8]} 30... Rb3 {[%clk 0:01:47]} 31.
hxg6 {[%clk 0:00:48.7]} 31... hxg6 {[%clk 0:01:46.9]} 32. Bf3 {[%clk 0:00:49.2]}
32... Bf8 {[%clk 0:01:36.1]} 33. Bd1 {[%clk 0:00:48.2]} 33... Nc5 {[%clk
0:01:32.7]} 34. Qh4 {[%clk 0:00:41.8]} 34... Rxb2 {[%clk 0:01:28.7]} 35. Ra2
{[%clk 0:00:37.9]} 35... Rxa2 {[%clk 0:01:27.6]} 36. Rxa2 {[%clk 0:00:37.1]}
36... Rb1 {[%clk 0:01:27.5]} 37. Qe1 {[%clk 0:00:21.4]} 37... Nd3 {[%clk
0:01:14.5]} 38. Qd2 {[%clk 0:00:19.2]} 38... Qc4 {[%clk 0:01:13.6]} 39. Rc2
{[%clk 0:00:16.7]} 39... a3 {[%clk 0:01:10.8]} 40. Kg2 {[%clk 0:00:15.8]} 40...
a2 {[%clk 0:01:09.8]} 41. Rxa2 {[%clk 0:00:15.6]} 41... Rxd1 {[%clk 0:01:09.6]}
42. Qxd1 {[%clk 0:00:15.6]} 42... Qxa2+ {[%clk 0:01:09.9]} 43. Kf3 {[%clk
0:00:16.1]} 43... Nc5 {[%clk 0:01:01.2]} 0-1